[Event "Early-Titled-Tuesday-Blitz-January-23-2024"]
[Site "Chess.com"]
[Date "2024.01.23"]
[Round "6"]
[White "ClaudiaSof"]
[Black "MIss_MIaMI"]
[Result "0-1"]
[WhiteElo "2258"]
[BlackElo "2443"]
[TimeControl "180+1"]
[EndTime "9:06:14 PST"]
[Termination "MIss_MIaMI won by resignation"]

1. d4 {[%clk 0:03:00.9]} 1... c5 {[%clk 0:02:57.9]} 2. d5 {[%clk 0:03:00.1]}
2... g6 {[%clk 0:02:58.2]} 3. Nc3 {[%clk 0:02:58.1]} 3... Bg7 {[%clk 0:02:58.6]}
4. Nf3 {[%clk 0:02:56.8]} 4... d6 {[%clk 0:02:57.6]} 5. e4 {[%clk 0:02:56.9]}
5... Bg4 {[%clk 0:02:56.8]} 6. h3 {[%clk 0:02:51.4]} 6... Bxf3 {[%clk 0:02:57]}
7. Qxf3 {[%clk 0:02:50.9]} 7... a6 {[%clk 0:02:57.2]} 8. a4 {[%clk 0:02:49.7]}
8... b6 {[%clk 0:02:57.3]} 9. Bc4 {[%clk 0:02:37.9]} 9... Nd7 {[%clk 0:02:54.4]}
10. Qe2 {[%clk 0:02:37.9]} 10... Qc8 {[%clk 0:02:48.2]} 11. O-O {[%clk
0:02:36.2]} 11... Ngf6 {[%clk 0:02:48.7]} 12. f4 {[%clk 0:02:34.6]} 12... O-O
{[%clk 0:02:44.1]} 13. Bd2 {[%clk 0:02:24.1]} 13... Ne8 {[%clk 0:02:37.5]} 14.
Rae1 {[%clk 0:02:20.6]} 14... Nc7 {[%clk 0:02:35.3]} 15. Kh1 {[%clk 0:02:17.2]}
15... Rb8 {[%clk 0:02:35.2]} 16. b3 {[%clk 0:02:07.2]} 16... b5 {[%clk
0:02:35.1]} 17. axb5 {[%clk 0:02:02.9]} 17... axb5 {[%clk 0:02:31.3]} 18. Nxb5
{[%clk 0:02:01.3]} 18... Nxb5 {[%clk 0:02:26.2]} 19. Bxb5 {[%clk 0:02:01.3]}
19... Nf6 {[%clk 0:02:23.4]} 20. Bc6 {[%clk 0:01:59.6]} 20... Nh5 {[%clk
0:02:19]} 21. Kh2 {[%clk 0:01:59]} 21... e6 {[%clk 0:02:09]} 22. Qg4 {[%clk
0:01:48.6]} 22... Nf6 {[%clk 0:01:59]} 23. Qf3 {[%clk 0:01:46.7]} 23... exd5
{[%clk 0:01:56.1]} 24. exd5 {[%clk 0:01:46.2]} 24... Qa6 {[%clk 0:01:22.4]} 25.
Bc3 {[%clk 0:01:43.7]} 25... Rbc8 {[%clk 0:01:01.2]} 26. Re7 {[%clk 0:01:35.8]}
26... Nh5 {[%clk 0:00:55]} 27. Bxg7 {[%clk 0:01:31.2]} 27... Nxg7 {[%clk
0:00:55.1]} 28. Bb7 {[%clk 0:01:30.5]} 28... Qa7 {[%clk 0:00:55.2]} 29. Rfe1
{[%clk 0:01:24.4]} 29... Rb8 {[%clk 0:00:52.3]} 30. Bc6 {[%clk 0:01:22]} 30...
Qa5 {[%clk 0:00:52.5]} 31. g4 {[%clk 0:01:19]} 31... Rb4 {[%clk 0:00:40.7]} 32.
R1e2 {[%clk 0:01:16.2]} 32... Qa1 {[%clk 0:00:37.4]} 33. f5 {[%clk 0:01:11.4]}
33... Qf6 {[%clk 0:00:34]} 34. R7e3 {[%clk 0:00:47.4]} 34... gxf5 {[%clk
0:00:32.3]} 35. gxf5 {[%clk 0:00:41.7]} 35... Qxf5 {[%clk 0:00:32.7]} 36. Qxf5
{[%clk 0:00:38.8]} 36... Nxf5 {[%clk 0:00:33.6]} 37. Re8 {[%clk 0:00:38.1]}
37... Rxe8 {[%clk 0:00:29.6]} 38. Rxe8+ {[%clk 0:00:38]} 38... Kg7 {[%clk
0:00:29.7]} 39. Bd7 {[%clk 0:00:36.8]} 39... Nh4 {[%clk 0:00:19.9]} 40. Kg3
{[%clk 0:00:34.3]} 40... Ng6 {[%clk 0:00:20.1]} 41. Rd8 {[%clk 0:00:29.6]} 41...
Rd4 {[%clk 0:00:19.5]} 42. Bc6 {[%clk 0:00:29.1]} 42... Ne7 {[%clk 0:00:17.2]}
43. Rxd6 {[%clk 0:00:27.3]} 43... Nf5+ {[%clk 0:00:17.5]} 44. Kf3 {[%clk
0:00:26.4]} 44... Nxd6 {[%clk 0:00:18.4]} 45. Ke3 {[%clk 0:00:26.4]} 45... Rh4
{[%clk 0:00:18.3]} 46. c3 {[%clk 0:00:25.2]} 46... Rxh3+ {[%clk 0:00:18.5]} 47.
Kd2 {[%clk 0:00:25.6]} 47... Ne4+ {[%clk 0:00:18.2]} 0-1

[Event "Early-Titled-Tuesday-Blitz-January-23-2024"]
[Site "Chess.com"]
[Date "2024.01.23"]
[Round "6"]
[White "Piotrek1979"]
[Black "Djager97"]
[Result "1-0"]
[WhiteElo "2414"]
[BlackElo "2562"]
[TimeControl "180+1"]
[EndTime "9:06:15 PST"]
[Termination "Piotrek1979 won on time"]

1. c4 {[%clk 0:02:59.5]} 1... e6 {[%clk 0:02:59.6]} 2. Nf3 {[%clk 0:02:59]} 2...
d5 {[%clk 0:02:59.8]} 3. g3 {[%clk 0:02:59.9]} 3... Nf6 {[%clk 0:02:58]} 4. Bg2
{[%clk 0:03:00.8]} 4... dxc4 {[%clk 0:02:58.3]} 5. Qa4+ {[%clk 0:03:00]} 5...
Bd7 {[%clk 0:02:58.6]} 6. Qxc4 {[%clk 0:03:00.5]} 6... c5 {[%clk 0:02:59]} 7.
Ne5 {[%clk 0:02:59.9]} 7... Qc8 {[%clk 0:02:58.4]} 8. O-O {[%clk 0:02:58.1]}
8... Bc6 {[%clk 0:02:57]} 9. Nxc6 {[%clk 0:02:57.8]} 9... Nxc6 {[%clk
0:02:57.9]} 10. d3 {[%clk 0:02:53.9]} 10... Be7 {[%clk 0:02:57.5]} 11. Qa4
{[%clk 0:02:50.5]} 11... O-O {[%clk 0:02:57]} 12. Bxc6 {[%clk 0:02:48.6]} 12...
bxc6 {[%clk 0:02:57.7]} 13. Nc3 {[%clk 0:02:35.5]} 13... Nd5 {[%clk 0:02:56.5]}
14. Bd2 {[%clk 0:02:31.3]} 14... h6 {[%clk 0:02:56.1]} 15. Rab1 {[%clk
0:02:28.3]} 15... h5 {[%clk 0:02:49.5]} 16. Rfc1 {[%clk 0:02:26.9]} 16... h4
{[%clk 0:02:49]} 17. Ne4 {[%clk 0:02:19.6]} 17... e5 {[%clk 0:02:31.2]} 18. Nxc5
{[%clk 0:02:10.9]} 18... Rb8 {[%clk 0:02:20.3]} 19. Qe4 {[%clk 0:02:00]} 19...
Qh3 {[%clk 0:02:07.7]} 20. Qg2 {[%clk 0:01:59.3]} 20... Qg4 {[%clk 0:02:02.9]}
21. Qe4 {[%clk 0:01:49]} 21... Qh3 {[%clk 0:02:01.1]} 22. b3 {[%clk 0:01:39.2]}
22... Rb5 {[%clk 0:01:37.5]} 23. d4 {[%clk 0:01:25.8]} 23... exd4 {[%clk
0:01:32.3]} 24. Nd3 {[%clk 0:01:25]} 24... hxg3 {[%clk 0:01:15.7]} 25. hxg3
{[%clk 0:01:24.4]} 25... Bf6 {[%clk 0:01:06.5]} 26. Rxc6 {[%clk 0:01:16.2]}
26... Nc3 {[%clk 0:00:56.1]} 27. Bxc3 {[%clk 0:01:15]} 27... dxc3 {[%clk
0:00:56.5]} 28. Nf4 {[%clk 0:01:13.6]} 28... Qd7 {[%clk 0:00:52.8]} 29. Rc4
{[%clk 0:00:52.5]} 29... Re8 {[%clk 0:00:51.1]} 30. Qd3 {[%clk 0:00:49.4]} 30...
Qg4 {[%clk 0:00:30]} 31. Kg2 {[%clk 0:00:40]} 31... Rbb8 {[%clk 0:00:24.2]} 32.
Qf3 {[%clk 0:00:39.6]} 32... Qf5 {[%clk 0:00:17.7]} 33. Rc1 {[%clk 0:00:40]}
33... Rbd8 {[%clk 0:00:13.9]} 34. Nh5 {[%clk 0:00:36]} 34... Qxf3+ {[%clk
0:00:12.5]} 35. Kxf3 {[%clk 0:00:36.9]} 35... Be5 {[%clk 0:00:06.5]} 36. e3
{[%clk 0:00:35.8]} 36... g6 {[%clk 0:00:06.7]} 37. Nf4 {[%clk 0:00:33.4]} 37...
Bf6 {[%clk 0:00:05.5]} 38. Ne2 {[%clk 0:00:29.6]} 38... Rd2 {[%clk 0:00:03.4]}
39. Nxc3 {[%clk 0:00:29.5]} 39... Bxc3 {[%clk 0:00:03.8]} 40. R1xc3 {[%clk
0:00:29.6]} 40... Rxa2 {[%clk 0:00:04.1]} 41. Ra4 {[%clk 0:00:29.3]} 1-0

[Event "Early-Titled-Tuesday-Blitz-January-23-2024"]
[Site "Chess.com"]
[Date "2024.01.23"]
[Round "6"]
[White "alvarorodriguezavila"]
[Black "Manukyan_Artak"]
[Result "1-0"]
[WhiteElo "2328"]
[BlackElo "2495"]
[TimeControl "180+1"]
[EndTime "9:06:15 PST"]
[Termination "alvarorodriguezavila won on time"]

1. e4 {[%clk 0:03:00.9]} 1... c6 {[%clk 0:02:56.3]} 2. d4 {[%clk 0:02:58.5]}
2... d5 {[%clk 0:02:56.7]} 3. e5 {[%clk 0:02:59.3]} 3... Bf5 {[%clk 0:02:56.5]}
4. h4 {[%clk 0:03:00]} 4... h5 {[%clk 0:02:56.3]} 5. Bd3 {[%clk 0:03:00.4]} 5...
Bxd3 {[%clk 0:02:54.6]} 6. Qxd3 {[%clk 0:03:01.3]} 6... e6 {[%clk 0:02:51.7]} 7.
Nd2 {[%clk 0:02:55.4]} 7... Qb6 {[%clk 0:02:36.1]} 8. Ne2 {[%clk 0:02:45.2]}
8... c5 {[%clk 0:02:30.7]} 9. c3 {[%clk 0:02:45.6]} 9... Nc6 {[%clk 0:02:30.5]}
10. a3 {[%clk 0:02:45.6]} 10... a5 {[%clk 0:02:29.9]} 11. Nf3 {[%clk 0:02:42.1]}
11... Nh6 {[%clk 0:02:26.1]} 12. O-O {[%clk 0:02:39.7]} 12... Nf5 {[%clk
0:02:25.4]} 13. Ng3 {[%clk 0:02:33.6]} 13... g6 {[%clk 0:02:19.9]} 14. Nxf5
{[%clk 0:02:30.3]} 14... gxf5 {[%clk 0:02:19]} 15. Bg5 {[%clk 0:02:23.8]} 15...
a4 {[%clk 0:02:10.4]} 16. Rfd1 {[%clk 0:02:04.9]} 16... c4 {[%clk 0:02:00.6]}
17. Qe2 {[%clk 0:01:57.8]} 17... Be7 {[%clk 0:01:52.9]} 18. Bf6 {[%clk
0:01:57.2]} 18... Bxf6 {[%clk 0:01:51.2]} 19. exf6 {[%clk 0:01:57.7]} 19...
O-O-O {[%clk 0:01:51.4]} 20. Ng5 {[%clk 0:01:57.7]} 20... Rd7 {[%clk 0:01:45.7]}
21. Re1 {[%clk 0:01:52.7]} 21... Na5 {[%clk 0:01:06.2]} 22. Qf3 {[%clk
0:01:30.2]} 22... Kb8 {[%clk 0:01:01.1]} 23. Re2 {[%clk 0:01:28.5]} 23... Ka7
{[%clk 0:00:56.7]} 24. Rae1 {[%clk 0:01:28.5]} 24... Qd8 {[%clk 0:00:51.2]} 25.
Nxe6 {[%clk 0:01:20.5]} 25... fxe6 {[%clk 0:00:50.6]} 26. Rxe6 {[%clk
0:01:21.4]} 26... Rf8 {[%clk 0:00:45.1]} 27. Qxf5 {[%clk 0:01:21.7]} 27... Rdf7
{[%clk 0:00:41]} 28. R1e5 {[%clk 0:01:05.6]} 28... Rxf6 {[%clk 0:00:37.4]} 29.
Rxf6 {[%clk 0:01:06.1]} 29... Rxf6 {[%clk 0:00:29]} 30. Qxh5 {[%clk 0:01:06.2]}
30... Nc6 {[%clk 0:00:22.8]} 31. Rxd5 {[%clk 0:01:03.3]} 31... Qe7 {[%clk
0:00:22.8]} 32. Qd1 {[%clk 0:00:54.8]} 32... Re6 {[%clk 0:00:17.4]} 33. Qxa4+
{[%clk 0:00:29.3]} 33... Kb8 {[%clk 0:00:14.3]} 34. Rg5 {[%clk 0:00:29.9]} 34...
Re1+ {[%clk 0:00:07.4]} 35. Kh2 {[%clk 0:00:30.4]} 35... Qd6+ {[%clk 0:00:07.8]}
36. g3 {[%clk 0:00:30.5]} 36... Nd8 {[%clk 0:00:05.9]} 37. Qa5 {[%clk
0:00:20.2]} 37... Re2 {[%clk 0:00:04.3]} 38. Kg2 {[%clk 0:00:19.4]} 38... Qf6
{[%clk 0:00:01.1]} 39. Rf5 {[%clk 0:00:18.3]} 1-0

[Event "Early-Titled-Tuesday-Blitz-January-23-2024"]
[Site "Chess.com"]
[Date "2024.01.23"]
[Round "6"]
[White "wild3000"]
[Black "FoxOnTheRun97"]
[Result "1-0"]
[WhiteElo "2446"]
[BlackElo "2595"]
[TimeControl "180+1"]
[EndTime "9:06:17 PST"]
[Termination "wild3000 won on time"]

1. c4 {[%clk 0:02:27.5]} 1... e6 {[%clk 0:02:58.7]} 2. d4 {[%clk 0:02:26.6]}
2... b6 {[%clk 0:02:57.2]} 3. Nc3 {[%clk 0:02:25.6]} 3... Bb7 {[%clk 0:02:57.6]}
4. e4 {[%clk 0:02:25.7]} 4... Bb4 {[%clk 0:02:48.3]} 5. Bd3 {[%clk 0:02:24.8]}
5... f5 {[%clk 0:02:40.5]} 6. d5 {[%clk 0:02:18.4]} 6... fxe4 {[%clk 0:02:31.9]}
7. Bxe4 {[%clk 0:02:17.1]} 7... Nf6 {[%clk 0:02:31.3]} 8. Bf3 {[%clk 0:02:12]}
8... exd5 {[%clk 0:02:30.1]} 9. cxd5 {[%clk 0:02:09.2]} 9... d6 {[%clk
0:02:18.7]} 10. Qa4+ {[%clk 0:02:04]} 10... Nbd7 {[%clk 0:02:13.8]} 11. Qxb4
{[%clk 0:02:03.9]} 11... Nc5 {[%clk 0:02:10.1]} 12. Qb5+ {[%clk 0:01:53.6]}
12... Kf7 {[%clk 0:02:06.8]} 13. Nge2 {[%clk 0:01:47.2]} 13... Ba6 {[%clk
0:01:55.5]} 14. Qc6 {[%clk 0:01:36.8]} 14... Nd3+ {[%clk 0:01:50.6]} 15. Kf1
{[%clk 0:01:32.9]} 15... Ne5 {[%clk 0:01:21.9]} 16. Qa4 {[%clk 0:01:29.5]} 16...
Bd3 {[%clk 0:01:11.6]} 17. Bg5 {[%clk 0:01:17.2]} 17... b5 {[%clk 0:00:58.3]}
18. Qf4 {[%clk 0:01:13.5]} 18... Ng6 {[%clk 0:00:42.8]} 19. Qd2 {[%clk
0:00:58.2]} 19... Bf5 {[%clk 0:00:40]} 20. Nxb5 {[%clk 0:00:46.2]} 20... Ne5
{[%clk 0:00:36.9]} 21. Bxf6 {[%clk 0:00:41.1]} 21... Qxf6 {[%clk 0:00:32.5]} 22.
Nbd4 {[%clk 0:00:33.6]} 22... Ng6 {[%clk 0:00:20.5]} 23. Nxf5 {[%clk 0:00:32.6]}
23... Qxf5 {[%clk 0:00:20.9]} 24. Rc1 {[%clk 0:00:31]} 24... Rac8 {[%clk
0:00:20.2]} 25. Nd4 {[%clk 0:00:26.2]} 25... Qf6 {[%clk 0:00:19.3]} 26. Bh5
{[%clk 0:00:23.7]} 26... Rhf8 {[%clk 0:00:18.3]} 27. h4 {[%clk 0:00:22.5]} 27...
Kg8 {[%clk 0:00:17.9]} 28. Ne6 {[%clk 0:00:20]} 28... Ne5 {[%clk 0:00:11.2]} 29.
Nxf8 {[%clk 0:00:17.9]} 29... Rxf8 {[%clk 0:00:12.1]} 30. Kg1 {[%clk 0:00:14.6]}
30... Qf5 {[%clk 0:00:11.8]} 31. Bd1 {[%clk 0:00:13.2]} 31... Kh8 {[%clk
0:00:10.1]} 32. Qe3 {[%clk 0:00:11.5]} 32... Ng6 {[%clk 0:00:07.9]} 33. h5
{[%clk 0:00:11.2]} 33... Nf4 {[%clk 0:00:07.8]} 34. Bf3 {[%clk 0:00:10.5]} 34...
Qf6 {[%clk 0:00:05.9]} 35. h6 {[%clk 0:00:09.9]} 1-0

[Event "Early-Titled-Tuesday-Blitz-January-23-2024"]
[Site "Chess.com"]
[Date "2024.01.23"]
[Round "6"]
[White "Airquake"]
[Black "Aygehovit1992"]
[Result "1-0"]
[WhiteElo "2548"]
[BlackElo "2696"]
[TimeControl "180+1"]
[EndTime "9:06:19 PST"]
[Termination "Airquake won on time"]

1. b3 {[%clk 0:03:00.9]} 1... Nf6 {[%clk 0:02:56.6]} 2. Bb2 {[%clk 0:03:01.7]}
2... e6 {[%clk 0:02:55.9]} 3. Nf3 {[%clk 0:03:01.3]} 3... b6 {[%clk 0:02:56]} 4.
e3 {[%clk 0:03:01.5]} 4... Bb7 {[%clk 0:02:56.4]} 5. d4 {[%clk 0:03:01.4]} 5...
d5 {[%clk 0:02:55.3]} 6. c4 {[%clk 0:03:01.2]} 6... Bb4+ {[%clk 0:02:54.1]} 7.
Nbd2 {[%clk 0:03:00.9]} 7... O-O {[%clk 0:02:46.2]} 8. Bd3 {[%clk 0:03:00.3]}
8... Nbd7 {[%clk 0:02:42.7]} 9. O-O {[%clk 0:02:57.6]} 9... c5 {[%clk
0:02:42.6]} 10. cxd5 {[%clk 0:02:50.8]} 10... Nxd5 {[%clk 0:02:39.7]} 11. a3
{[%clk 0:02:46.3]} 11... Bxd2 {[%clk 0:02:39.3]} 12. Qxd2 {[%clk 0:02:45.8]}
12... Re8 {[%clk 0:02:33.4]} 13. Rad1 {[%clk 0:02:42.4]} 13... cxd4 {[%clk
0:02:32.6]} 14. Nxd4 {[%clk 0:02:39.9]} 14... Nc5 {[%clk 0:02:26.5]} 15. Bc2
{[%clk 0:02:38.3]} 15... Rc8 {[%clk 0:02:22.9]} 16. b4 {[%clk 0:02:28.4]} 16...
Nd7 {[%clk 0:02:21.3]} 17. e4 {[%clk 0:02:06]} 17... N5f6 {[%clk 0:02:15.2]} 18.
Qe2 {[%clk 0:01:35.1]} 18... Qc7 {[%clk 0:02:08.3]} 19. Rc1 {[%clk 0:01:24.7]}
19... Qf4 {[%clk 0:02:03.2]} 20. Rfe1 {[%clk 0:01:18.9]} 20... Ne5 {[%clk
0:02:02.4]} 21. g3 {[%clk 0:01:15]} 21... Qh6 {[%clk 0:02:00]} 22. f4 {[%clk
0:01:12.9]} 22... Nc4 {[%clk 0:01:57.4]} 23. Ba1 {[%clk 0:01:03.1]} 23... Nxa3
{[%clk 0:01:53.4]} 24. Bd3 {[%clk 0:01:03.1]} 24... Rxc1 {[%clk 0:01:39.4]} 25.
Rxc1 {[%clk 0:01:03]} 25... Rd8 {[%clk 0:01:33.9]} 26. Rc7 {[%clk 0:00:31.4]}
26... Rd7 {[%clk 0:00:20.1]} 27. Rxd7 {[%clk 0:00:31.6]} 27... Nxd7 {[%clk
0:00:21]} 28. Qb2 {[%clk 0:00:26.6]} 28... e5 {[%clk 0:00:19.4]} 29. Nf5 {[%clk
0:00:25.7]} 29... Qh5 {[%clk 0:00:13.6]} 30. Be2 {[%clk 0:00:22.9]} 30... Qh3
{[%clk 0:00:13.3]} 31. Nd6 {[%clk 0:00:18.7]} 31... Bc6 {[%clk 0:00:05.3]} 32.
Qxa3 {[%clk 0:00:18.9]} 32... exf4 {[%clk 0:00:05.7]} 33. Qc3 {[%clk 0:00:15.2]}
33... Nf6 {[%clk 0:00:02.8]} 34. Qxc6 {[%clk 0:00:14.9]} 34... h6 {[%clk
0:00:02.1]} 35. Bxf6 {[%clk 0:00:11.1]} 35... fxg3 {[%clk 0:00:01.9]} 36. Qc8+
{[%clk 0:00:10.4]} 36... Qxc8 {[%clk 0:00:01.1]} 37. Nxc8 {[%clk 0:00:11.3]} 1-0

[Event "Early-Titled-Tuesday-Blitz-January-23-2024"]
[Site "Chess.com"]
[Date "2024.01.23"]
[Round "6"]
[White "Msb2"]
[Black "starworld123"]
[Result "1-0"]
[WhiteElo "3061"]
[BlackElo "2844"]
[TimeControl "180+1"]
[EndTime "9:06:20 PST"]
[Termination "Msb2 won by resignation"]

1. d4 {[%clk 0:03:00.9]} 1... Nf6 {[%clk 0:02:56.8]} 2. c4 {[%clk 0:02:59.9]}
2... e6 {[%clk 0:02:56.7]} 3. Nc3 {[%clk 0:02:57.9]} 3... Bb4 {[%clk 0:02:56.8]}
4. e3 {[%clk 0:02:58.5]} 4... O-O {[%clk 0:02:48.6]} 5. Bd2 {[%clk 0:02:58.9]}
5... c5 {[%clk 0:02:47.2]} 6. a3 {[%clk 0:02:58.1]} 6... Bxc3 {[%clk 0:02:46.6]}
7. Bxc3 {[%clk 0:02:59]} 7... Ne4 {[%clk 0:02:42.7]} 8. Ne2 {[%clk 0:02:58.6]}
8... b6 {[%clk 0:02:40.2]} 9. d5 {[%clk 0:02:58.4]} 9... Ba6 {[%clk 0:02:34]}
10. Qd3 {[%clk 0:02:57.2]} 10... exd5 {[%clk 0:02:20.4]} 11. Qxd5 {[%clk
0:02:58.1]} 11... Qe7 {[%clk 0:02:19.5]} 12. b3 {[%clk 0:02:58.3]} 12... Re8
{[%clk 0:02:17.1]} 13. Bb2 {[%clk 0:02:58.4]} 13... Nxf2 {[%clk 0:02:01.1]} 14.
Kxf2 {[%clk 0:02:59.3]} 14... Qxe3+ {[%clk 0:02:00.6]} 15. Ke1 {[%clk
0:02:59.6]} 15... Nc6 {[%clk 0:01:57.5]} 16. Qf3 {[%clk 0:02:48.9]} 16... Qxf3
{[%clk 0:01:45.2]} 17. gxf3 {[%clk 0:02:49.8]} 17... Na5 {[%clk 0:01:45.7]} 18.
Rd1 {[%clk 0:02:41.4]} 18... Nxb3 {[%clk 0:01:42.8]} 19. Rxd7 {[%clk 0:02:40.5]}
19... Bxc4 {[%clk 0:01:41.6]} 20. Kf2 {[%clk 0:02:40.9]} 20... Rad8 {[%clk
0:01:36.7]} 21. Rxd8 {[%clk 0:02:26.1]} 21... Rxd8 {[%clk 0:01:37.6]} 22. Bc3
{[%clk 0:02:24]} 22... f6 {[%clk 0:01:31.5]} 23. Nf4 {[%clk 0:02:15]} 23... Bxf1
{[%clk 0:01:31.1]} 24. Rxf1 {[%clk 0:02:15.9]} 24... Kf7 {[%clk 0:01:29.2]} 25.
h4 {[%clk 0:02:15.5]} 25... g5 {[%clk 0:01:19.2]} 26. hxg5 {[%clk 0:02:16.4]}
26... fxg5 {[%clk 0:01:19.3]} 27. Ne2 {[%clk 0:02:09.9]} 27... h5 {[%clk
0:01:08.3]} 28. Rb1 {[%clk 0:02:09.6]} 28... Nd2 {[%clk 0:01:07.9]} 29. Rg1
{[%clk 0:02:04.2]} 29... Rd3 {[%clk 0:00:59]} 30. Bxd2 {[%clk 0:01:57.9]} 30...
Rxd2 {[%clk 0:00:58.2]} 31. Rxg5 {[%clk 0:01:58.6]} 31... Ra2 {[%clk 0:00:53.9]}
32. Rxh5 {[%clk 0:01:58.7]} 32... Rxa3 {[%clk 0:00:54.4]} 33. f4 {[%clk
0:01:55.1]} 33... c4 {[%clk 0:00:54.4]} 34. Nd4 {[%clk 0:01:52]} 34... Rd3
{[%clk 0:00:50.7]} 35. Nf3 {[%clk 0:01:46.4]} 35... Kf6 {[%clk 0:00:48.3]} 36.
Ne5 {[%clk 0:01:38.4]} 36... Rd2+ {[%clk 0:00:34.7]} 37. Ke3 {[%clk 0:01:38.7]}
37... c3 {[%clk 0:00:35.6]} 38. Rh6+ {[%clk 0:01:31.2]} 38... Kf5 {[%clk
0:00:35.5]} 39. Rc6 {[%clk 0:01:32.1]} 39... Rd1 {[%clk 0:00:19.5]} 40. Nf3
{[%clk 0:01:22.1]} 40... Rc1 {[%clk 0:00:16.6]} 41. Nd4+ {[%clk 0:01:21.9]}
41... Kg4 {[%clk 0:00:17.3]} 42. Rg6+ {[%clk 0:01:22.7]} 42... Kh5 {[%clk
0:00:17.7]} 43. Rg5+ {[%clk 0:01:22.6]} 43... Kh6 {[%clk 0:00:16.6]} 44. Nf5+
{[%clk 0:01:22.3]} 44... Kh7 {[%clk 0:00:17.3]} 45. Rg7+ {[%clk 0:01:21.5]}
45... Kh8 {[%clk 0:00:17.9]} 46. Rc7 {[%clk 0:01:22.4]} 46... b5 {[%clk
0:00:17.7]} 47. Nd4 {[%clk 0:01:13.6]} 47... b4 {[%clk 0:00:18.3]} 48. f5 {[%clk
0:01:14.2]} 48... Rb1 {[%clk 0:00:11.8]} 49. f6 {[%clk 0:01:06.3]} 49... Rf1
{[%clk 0:00:12.5]} 50. Nf3 {[%clk 0:01:06.9]} 50... b3 {[%clk 0:00:09.8]} 51.
Rc8+ {[%clk 0:01:06.7]} 51... Kh7 {[%clk 0:00:10.5]} 52. f7 {[%clk 0:01:07.6]}
52... b2 {[%clk 0:00:04.8]} 53. f8=Q {[%clk 0:01:00.9]} 53... b1=Q {[%clk
0:00:04.2]} 54. Qf7+ {[%clk 0:01:00.9]} 1-0

[Event "Early-Titled-Tuesday-Blitz-January-23-2024"]
[Site "Chess.com"]
[Date "2024.01.23"]
[Round "6"]
[White "Goryachkina"]
[Black "SpeedofLight0"]
[Result "0-1"]
[WhiteElo "2706"]
[BlackElo "2910"]
[TimeControl "180+1"]
[EndTime "9:06:20 PST"]
[Termination "SpeedofLight0 won on time"]

1. e4 {[%clk 0:03:00.1]} 1... c5 {[%clk 0:02:57.3]} 2. Nf3 {[%clk 0:03:00]} 2...
d6 {[%clk 0:02:57.6]} 3. d4 {[%clk 0:02:59.9]} 3... cxd4 {[%clk 0:02:58.5]} 4.
Nxd4 {[%clk 0:03:00.3]} 4... Nf6 {[%clk 0:02:59]} 5. Nc3 {[%clk 0:03:00.5]} 5...
a6 {[%clk 0:02:59.6]} 6. h3 {[%clk 0:02:59.7]} 6... e5 {[%clk 0:02:58.5]} 7.
Nde2 {[%clk 0:02:59.5]} 7... h5 {[%clk 0:02:51.7]} 8. Bg5 {[%clk 0:02:56.8]}
8... Be6 {[%clk 0:02:46.3]} 9. Bxf6 {[%clk 0:02:56.8]} 9... Qxf6 {[%clk
0:02:47.2]} 10. Nd5 {[%clk 0:02:57]} 10... Qd8 {[%clk 0:02:47.9]} 11. Qd3 {[%clk
0:02:57]} 11... Nd7 {[%clk 0:02:48.3]} 12. O-O-O {[%clk 0:02:41.8]} 12... Rc8
{[%clk 0:02:46.8]} 13. Nec3 {[%clk 0:02:28.9]} 13... g6 {[%clk 0:02:44.9]} 14.
Kb1 {[%clk 0:02:27.7]} 14... Bh6 {[%clk 0:02:40.9]} 15. h4 {[%clk 0:02:21.4]}
15... Nc5 {[%clk 0:02:34.1]} 16. Qe2 {[%clk 0:02:18.5]} 16... b5 {[%clk
0:02:30.7]} 17. f3 {[%clk 0:02:09.4]} 17... Bd7 {[%clk 0:02:27.4]} 18. g4 {[%clk
0:01:57.5]} 18... hxg4 {[%clk 0:02:11]} 19. fxg4 {[%clk 0:01:57.1]} 19... Ne6
{[%clk 0:02:11.7]} 20. g5 {[%clk 0:01:35.5]} 20... Bxg5 {[%clk 0:02:09.1]} 21.
hxg5 {[%clk 0:01:03.1]} 21... Rxh1 {[%clk 0:02:10]} 22. Nf6+ {[%clk 0:01:02.5]}
22... Ke7 {[%clk 0:01:31.7]} 23. Qf3 {[%clk 0:00:45.7]} 23... Rh4 {[%clk
0:01:14.5]} 24. Ncd5+ {[%clk 0:00:21.8]} 24... Kf8 {[%clk 0:01:14.1]} 25. Nb6
{[%clk 0:00:17.8]} 25... Bc6 {[%clk 0:00:21.9]} 26. Nxc8 {[%clk 0:00:13.2]}
26... Qxc8 {[%clk 0:00:22.8]} 27. Rxd6 {[%clk 0:00:12.8]} 27... Rf4 {[%clk
0:00:21.7]} 28. Qd1 {[%clk 0:00:12.9]} 28... Nxg5 {[%clk 0:00:18.8]} 29. Bg2
{[%clk 0:00:06.6]} 29... Ne6 {[%clk 0:00:15.7]} 30. Bh3 {[%clk 0:00:06.4]} 30...
Rxf6 {[%clk 0:00:09.8]} 31. Bxe6 {[%clk 0:00:06.6]} 31... Qc7 {[%clk 0:00:10.2]}
32. Rd8+ {[%clk 0:00:05.1]} 32... Ke7 {[%clk 0:00:09.9]} 33. Rc8 {[%clk
0:00:05]} 33... Qd6 {[%clk 0:00:08.5]} 34. Qxd6+ {[%clk 0:00:01.9]} 34... Kxd6
{[%clk 0:00:09.4]} 35. Bh3 {[%clk 0:00:01.1]} 35... Rf3 {[%clk 0:00:08.5]} 0-1